Workbook

Sheet CONSOLIDAÇÃO
B1: NOME PLANILHA | C1: ABA | D1: OBJETIVO DE APRENDIZAGEM | E1: CLAREZA | F1: PERTINæNCIA | G1: COMENTçRIO
B2: Educação Infantil - Bebês | C2: O EU, O OUTRO, O NÓS - Bebês | D2: (EIBEEO01) Perceber que suas ações têm efeitos nas outras crianças e adultos, constituindo relações de amizade. | G2: creche e pre escola
B3: Educação Infantil - Bebês | C3: O EU, O OUTRO, O NÓS - Bebês | D3: (EIBEEO02) Perceber as possibilidades e os limites de seu corpo nas brincadeiras das quais participa. | G3: creche e pre escola
B4: Educação Infantil - Bebês | C4: O EU, O OUTRO, O NÓS - Bebês | D4: (EIBEEO03) Dialogar com parceiros coetâneos ou adultos, ao explorar materiais, objetos, brinquedos. | F4: X | G4: Substituir dialogar por expressar
B5: Educação Infantil - Bebês | C5: O EU, O OUTRO, O NÓS - Bebês | D5: (EIBEEO04) Comunicar suas necessidades, desejos e emoções, utilizando gestos, balbucios e palavras. | G5: creche e pre escola
B6: Educação Infantil - Bebês | C6: O EU, O OUTRO, O NÓS - Bebês | D6: (EIBEEO05) Reconhecer as sensações do seu corpo em momentos de alimentação, higiene, descanso. | G6: Idade: de 0 a até 06 anos
B7: Educação Infantil - Bebês | C7: CORPO, GESTOS E MOV. - Bebês | D7: (EIBECG01) Exprimir corporalmente emoções, necessidades e desejos, ampliando suas estratégias comunicativas. | G7: creche e pre escola
B8: Educação Infantil - Bebês | C8: CORPO, GESTOS E MOV. - Bebês | D8: (EIBECG02) Ampliar suas possibilidades corporais, respondendo a desafios criados em espaços que possibilitem explorações diferenciadas. | G8: creche e pre escola
B9: Educação Infantil - Bebês | C9: CORPO, GESTOS E MOV. - Bebês | D9: (EIBECG03) Experimentar as possibilidades de seu corpo nas brincadeiras ou diante das demandas proporcionadas por ambientes acolhedores e desafiantes. | G9: creche e pre escola
B10: Educação Infantil - Bebês | C10: CORPO, GESTOS E MOV. - Bebês | D10: (EIBECG04) Participar do cuidado do seu corpo e do seu bem-estar. | G10: creche e pre escola
B11: Educação Infantil - Bebês | C11: CORPO, GESTOS E MOV. - Bebês | D11: (EIBECG05) Imitar gestos, sonoridades e movimentos de outras crianças e adultos. | F11: X | G11: acrescentar o " recriar" creche e pre escola
B12: Educação Infantil - Bebês | C12: ESCUTA, FALA, PENS. - Bebês | D12: (EIBEEF01 ) Reconhecer quando chamam seu nome e os nomes das pessoas com quem convive. | G12: creche e pre escola
B13: Educação Infantil - Bebês | C13: ESCUTA, FALA, PENS. - Bebês | D13: (EIBEEF02) Apreciar a escuta de pequenas histórias. | G13: creche e pre escola
B14: Educação Infantil - Bebês | C14: ESCUTA, FALA, PENS. - Bebês | D14: (EIBEEF03) Imitar as variações de entonação e gestos realizados pelos adultos, ao ler histórias e ao cantar. | G14: creche e pre escola
B15: Educação Infantil - Bebês | C15: ESCUTA, FALA, PENS. - Bebês | D15: (EIBEEF04) Participar de diálogos, usando movimentos expressivos, gestos, balbucios e fala. | G15: creche e pre escola
B16: Educação Infantil - Bebês | C16: TRAÇOS, SONS, FORMAS - Bebês | D16: (EIBETS01) Explorar sons produzidos com o próprio corpo e com objetos cotidianos | G16: creche e pre escola
B17: Educação Infantil - Bebês | C17: TRAÇOS, SONS, FORMAS - Bebês | D17: (EIBETS02) Traçar marcar gráficas, usando objetos riscantes e suportes. | G17: creche e pre escola
B18: Educação Infantil - Bebês | C18: TRAÇOS, SONS, FORMAS - Bebês | D18: (EIBETS03) Utilizar materiais com possibilidades transformadoras (argila, massa de modelar, papel, tinta), para criar objetos bidimensionais e tridimensionais. | G18: creche e pre escola
B19: Educação Infantil - Bebês | C19: TRAÇOS, SONS, FORMAS - Bebês | D19: (EIBETS04) Utilizar diferentes fontes sonoras e materiais para acompanhar brincadeiras cantadas, canções, músicas e melodias. | G19: creche e pre escola
B20: Educação Infantil - Bebês | C20: TRAÇOS, SONS, FORMAS - Bebês | D20: (EIBETS05) Imitar gestos, movimentos, sons, palavras de outras crianças e adultos ou de animais e objetos | G20: creche e pre escola
B21: Educação Infantil - Bebês | C21: ESPAÇOS, TEMPOS, QNT. - Bebês | D21: (EIBEET01) Explorar as características de objetos e materiais – odores, sabores, sonoridades, texturas, formas, pesos, tamanhos e posições no espaço. | G21: creche e pre escola
B22: Educação Infantil - Bebês | C22: ESPAÇOS, TEMPOS, QNT. - Bebês | D22: (EIBEET02) Apontar aos colegas e adultos alguma característica de pessoas, objetos e situações que tenha chamado sua atenção. | G22: creche e pre escola
B23: Educação Infantil - Bebês | C23: ESPAÇOS, TEMPOS, QNT. - Bebês | D23: (EIBEET03) Produzir ações e modificações em objetos ou no ambiente ao explorá-lo. | G23: creche e pre escola
B24: Educação Infantil - Bebês | C24: ESPAÇOS, TEMPOS, QNT. - Bebês | D24: (EIBEET04) Distinguir e identificar algumas partes do seu corpo | G24: creche e pre escola
B25: Educação Infantil - Bem pequenas | C25: O EU, O OUTRO, O NÓS - Bem pequenas | D25: (EIBPEO01) Demonstrar atitudes cuidadosas e solidárias na interação com diversas crianças e adultos. | G25: idades de 0 ate 6 anos
B26: Educação Infantil - Bem pequenas | C26: O EU, O OUTRO, O NÓS - Bem pequenas | D26: (EIBPEO02) Fazer uso de normas sociais, participando de brincadeiras de faz de conta. | G26: idades de 0 ate 6 anos
B27: Educação Infantil - Bem pequenas | C27: O EU, O OUTRO, O NÓS - Bem pequenas | D27: (EIBPEO03) Assumir personagens ligados ao seu cotidiano nas brincadeiras de faz de conta. | G27: creche e pre escola
B28: Educação Infantil - Bem pequenas | C28: O EU, O OUTRO, O NÓS - Bem pequenas | D28: (EIBPEO04) Praticar suas habilidades comunicativas, ampliando a compreensão das mensagens dos colegas. | G28: creche e pre escola
B29: Educação Infantil - Bem pequenas | C29: O EU, O OUTRO, O NÓS - Bem pequenas | D29: (EIBPEO05) Comparar características de colegas (tamanho, altura, etnia, preferências, local de moradia etc.), identificando semelhanças e diferenças. | G29: creche e pre escola
B30: Educação Infantil - Bem pequenas | C30: CORPO, GESTOS E MOV. -Bem pequenas | D30: (EIBPCG01) Explorar gestos e movimentos de sua cultura no cuidado de si e nas diversas brincadeiras corporais e de faz de conta. | G30: creche e pre escola
B31: Educação Infantil - Bem pequenas | C31: CORPO, GESTOS E MOV. -Bem pequenas | D31: (EIBPCG02) Praticar suas possibilidades corporais, ao se envolver em brincadeiras tradicionais e de faz de conta. | G31: creche e pre escola
B32: Educação Infantil - Bem pequenas | C32: CORPO, GESTOS E MOV. -Bem pequenas | D32: (EIBPCG03) Explorar formas de deslocamento no espaço, combinando movimentos e orientações diversas | G32: creche e pre escola
B33: Educação Infantil - Bem pequenas | C33: CORPO, GESTOS E MOV. -Bem pequenas | D33: (EIBPCG04) Demonstrar uma valorização das características do seu corpo, nas diversas atividades das quais participa, como em momentos de cuidado de si e do outro, em jogos, histórias e em atividades artísticas. | G33: creche e pre escola
B34: Educação Infantil - Bem pequenas | C34: CORPO, GESTOS E MOV. -Bem pequenas | D34: (EIBPCG05) Explorar formas de deslocamento no espaço, combinando movimentos e orientando-se com relação a noções como: em frente, atrás, no alto, embaixo, dentro, fora. | G34: creche e pre escola
B35: Educação Infantil - Bem pequenas | C35: ESCUTA, FALA, PENS. - Bem pequenas | D35: (EIBPEF01) Dialogar sobre diferentes assuntos em rodas de conversa e brincadeiras. | G35: creche e pre escola
B36: Educação Infantil - Bem pequenas | C36: ESCUTA, FALA, PENS. - Bem pequenas | D36: (EIBPEF02) Criar sons, rimas e gestos em brincadeiras de roda e outras brincadeiras. | G36: creche e pre escola
B37: Educação Infantil - Bem pequenas | C37: ESCUTA, FALA, PENS. - Bem pequenas | D37: (EIBPEF03) Relatar, de modo expressivo, experiências e fatos acontecidos, histórias de livros, filmes ou peças teatrais | G37: creche e pre escola
B38: Educação Infantil - Bem pequenas | C38: ESCUTA, FALA, PENS. - Bem pequenas | D38: (EIBPEF04) Criar novos elementos para as histórias que ouve | G38: creche e pre escola
B39: Educação Infantil - Bem pequenas | C39: ESCUTA, FALA, PENS. - Bem pequenas | D39: (EIBPEF05) Expressar seus sentimentos e opiniões, usando a linguagem verbal. | F39: X | G39: Substituir a linguagem verbal por "diferentes tipos de linguagem" para creche e pre escola
B40: Educação Infantil - Bem pequenas | C40: TRAÇOS, SONS, FORMAS - Bem pequenas | D40: (EIBPET01) Compartilhar, com outras crianças, situações de cuidado de plantas e animais nos espaços da instituição. | G40: creche e pre escola
B41: Educação Infantil - Bem pequenas | C41: TRAÇOS, SONS, FORMAS - Bem pequenas | D41: (EIBPET02) Relatar transformações observadas em materiais, animais, pessoas ou no ambiente. | G41: creche e pre escola
B42: Educação Infantil - Bem pequenas | C42: TRAÇOS, SONS, FORMAS - Bem pequenas | D42: (EIBPET03) Identificar relações espaciais (dentro e fora, em cima, embaixo e do lado), e temporais (antes e depois). | G42: creche e pre escola
B43: Educação Infantil - Bem pequenas | C43: TRAÇOS, SONS, FORMAS - Bem pequenas | D43: (EIBPET04) Classificar objetos, considerando um atributo (tamanho ou peso ou cor ou outro atributo). | G43: creche e pre escola
B44: Educação Infantil - Bem pequenas | C44: TRAÇOS, SONS, FORMAS - Bem pequenas | D44: (EIBPET05) Ordenar objetos, considerando um atributo (tamanho ou peso ou espessura ou outro atributo). | G44: creche e pre escola
B45: Educação Infantil - Bem pequenas | C45: ESPAÇOS, TEMPOS, QNT. - Bem pequenas | D45: (EIBPTS01) Explorar sons produzidos por materiais, objetos e instrumentos musicais, para acompanhar diversos tipos de canção. | G45: creche e pre escola
B46: Educação Infantil - Bem pequenas | C46: ESPAÇOS, TEMPOS, QNT. - Bem pequenas | D46: (EIBPTS02) Utilizar diferentes materiais, suportes e procedimentos para grafar, explorando cores, texturas, superfícies, planos, formas e volumes. | G46: creche e pre escola
B47: Educação Infantil - Bem pequenas | C47: ESPAÇOS, TEMPOS, QNT. - Bem pequenas | D47: (EIBPTS03) Reconhecer as possibilidades de se expressar em diferentes linguagens como a do desenho, do cinema, da música, do movimento, do teatro. | G47: creche e pre escola
B48: Educação Infantil - Bem pequenas | C48: ESPAÇOS, TEMPOS, QNT. - Bem pequenas | D48: (EIBPTS04) Organizar com os colegas o ambiente para as brincadeiras ou para ocasiões especiais, tais como festas e apresentações. | G48: creche e pre escola
B49: Educação Infantil - Bem pequenas | C49: ESPAÇOS, TEMPOS, QNT. - Bem pequenas | D49: (EIBPTS05) Recriar danças, cenas de teatro, histórias, músicas. | G49: creche e pre escola
B50: Educação Infantil - Pequenas | C50: O EU, O OUTRO, O NÓS - Pequenas | D50: (EICPEO01) Seguir as regras nas brincadeiras e jogos com outras crianças, aprendendo a lidar com o sucesso e a frustração. | G50: creche e pre escola
B51: Educação Infantil - Pequenas | C51: O EU, O OUTRO, O NÓS - Pequenas | D51: (EICPEO02) Fazer uso de estratégias para lidar com o conflito nas interações com diversas crianças e adultos. | G51: creche e pre escola
B52: Educação Infantil - Pequenas | C52: O EU, O OUTRO, O NÓS - Pequenas | D52: (EICPEO03) Apreciar os costumes e as manifestações culturais do seu contexto e de outros. | G52: creche e pre escola
B53: Educação Infantil - Pequenas | C53: O EU, O OUTRO, O NÓS - Pequenas | D53: (EICPEO04) Comunicar suas ideias e sentimentos a pessoas e grupos diversos, por meio de contatos diretos ou possibilitados pelas tecnologias da comunicação. | G53: creche e pre escola
B54: Educação Infantil - Pequenas | C54: O EU, O OUTRO, O NÓS - Pequenas | D54: (EICPEO05) Demonstrar oposição a qualquer forma de discriminação, sempre que presenciá-la. | G54: creche e pre escola
B55: Educação Infantil - Pequenas | C55: CORPO, GESTOS E MOV. - Pequenas | D55: (EICPCG01) Fazer uso de movimentos cada vez mais precisos, ao interagir com colegas e adultos em brincadeiras e atividades da cultura corporal. | G55: creche e pre escola
B56: Educação Infantil - Pequenas | C56: CORPO, GESTOS E MOV. - Pequenas | D56: (EICPCG02) Criar movimentos, gestos, olhares, sons e mímicas com o corpo em brincadeiras, jogos e atividades artísticas como dança, teatro e música. | G56: creche e pre escola
B57: Educação Infantil - Pequenas | C57: CORPO, GESTOS E MOV. - Pequenas | D57: (EICPCG03) Demonstrar controle e adequação do uso de seu corpo na participação em momentos de cuidado, brincadeiras e jogos, escuta e reconto de histórias, atividades artísticas, dentre outras possibilidades | G57: creche e pre escola
B58: Educação Infantil - Pequenas | C58: CORPO, GESTOS E MOV. - Pequenas | D58: (EICPCG04) Criar formas diversificadas para expressar ideias, opiniões, sentimentos, sensações e emoções com o seu corpo tanto nas situações do cotidiano como em brincadeiras, dança, teatro, música. | G58: creche e pre escola
B59: Educação Infantil - Pequenas | C59: CORPO, GESTOS E MOV. - Pequenas | D59: (EICPCG05) Demonstrar progressiva independência no cuidado do seu corpo. | G59: creche e pre escola
B60: Educação Infantil - Pequenas | C60: ESCUTA, FALA, PENS. - Pequenas | D60: (EICPEF01) Registrar experiências pessoais ou atividades realizadas na escola em fotografias, vídeos, desenhos e escrita (convencional ou não). | F60: X | G60: substituir convencional ou não por escrita espontanea para creche e pre escola
B61: Educação Infantil - Pequenas | C61: ESCUTA, FALA, PENS. - Pequenas | D61: (EICPEF02) Inventar enredos para brincadeiras, histórias, poemas, canções, roteiros de vídeos e de encenações, definindo os contextos e os personagens. | G61: pre escola
B62: Educação Infantil - Pequenas | C62: ESCUTA, FALA, PENS. - Pequenas | D62: (EICPEF03) Ditar textos orais ao/à professor/a, individualmente ou em grupo. | G62: pre escola
B63: Educação Infantil - Pequenas | C63: ESCUTA, FALA, PENS. - Pequenas | D63: (EICPEF04) Produzir suas próprias escritas, convencionais ou não, em situações com função social significativa. | F63: X | G63: Substituir convencional ou não por espontanea para pre escola
B64: Educação Infantil - Pequenas | C64: ESCUTA, FALA, PENS. - Pequenas | D64: (EICPEF05) Levantar hipóteses sobre textos escritos sobre as características da escrita: frases, palavras, espaços em branco, sinais de pontuação e outras marcas, compreendendo que a escrita é uma representação da fala. | F64: X | G64: ( objetivo reelaborado)explorar diferentes generos textuais orais e escritos, compreendendo que a escrita é uma representação da fala. Creche e pre escola
B65: Educação Infantil - Pequenas | C65: TRAÇOS, SONS, FORMAS - Pequenas | D65: (EICPTS01) Selecionar espaços, objetos, materiais, roupas e adereços para brincadeiras de faz de conta, encenações, criações musicais ou para festas tradicionais. | G65: creche e pre escola
B66: Educação Infantil - Pequenas | C66: TRAÇOS, SONS, FORMAS - Pequenas | D66: (EICPTS02) Explorar relações de peso, tamanho, quantidade e volume de algumas formas bidimensionais ou tridimensionais. | G66: creche e pre escola
B67: Educação Infantil - Pequenas | C67: TRAÇOS, SONS, FORMAS - Pequenas | D67: (EICPTS03) Analisar apresentações de teatro, música, dança, circo, cinema e outras manifestações artísticas, apresentando sua opinião verbalmente ou de outra forma. | G67: creche e pre escola
B68: Educação Infantil - Pequenas | C68: TRAÇOS, SONS, FORMAS - Pequenas | D68: (EICPTS04) Apropriar-se de noções como altura, ritmo e timbre em relação a vozes, sons do cotidiano e músicas. | G68: creche e pre escola
B69: Educação Infantil - Pequenas | C69: TRAÇOS, SONS, FORMAS - Pequenas | D69: (EICPTS05) Demonstrar interesse, respeito e valorização pelas diferentes manifestações culturais brasileiras. | G69: creche e pre escola
B70: Educação Infantil - Pequenas | C70: ESPAÇOS, TEMPOS, QNT. - Pequenas | D70: (EICPET01) Identificar e selecionar fontes de informações, para responder questões sobre a natureza e a sua preservação. | G70: pre escola
B71: Educação Infantil - Pequenas | C71: ESPAÇOS, TEMPOS, QNT. - Pequenas | D71: (EICPET02) Observar, descrever e registrar mudanças em diferentes materiais, resultantes de ações efetuadas sobre eles. | G71: pre escola
B72: Educação Infantil - Pequenas | C72: ESPAÇOS, TEMPOS, QNT. - Pequenas | D72: (EICPET03) Registrar o que observou ou mediu, fazendo uso mais elaborado da linguagem do desenho, da matemática, da escrita, ainda que de forma não convencional, ou utilizando recursos tecnológicos | G72: pre escola
B73: Educação Infantil - Pequenas | C73: ESPAÇOS, TEMPOS, QNT. - Pequenas | D73: (EICPET04) Relatar fatos importantes sobre o seu nascimento, seu desenvolvimento, a história dos seus familiares e da sua comunidade. | G73: pre escola
B74: Educação Infantil - Pequenas | C74: ESPAÇOS, TEMPOS, QNT. - Pequenas | D74: (EICPET05) Fazer observações e descrever elementos e fenômenos naturais como luz solar, vento, chuva, temperatura, mudanças climáticas, relevo e paisagem. | G74: creche e pre escola
B75: Ensino Fund. I (1º, 2º e 3º anos) | C75: LINGUAGENS. ARTE I | D75: (EF01AR21) Explorar diferentes formas de registro musical, incluindo formas distintas de notação musical, bem como procedimentos e técnicas de registro em áudio e audiovisual (CD). | E75: X | G75: Explorar diferentes formas de registro musical, procedimentos e técnicas de registro em áudio e audiovisual.
B76: Ensino Fund. I (1º, 2º e 3º anos) | C76: CIÊNCIAS I | D76: (EF01CI07) Descrever como era a Terra em tempos primitivos, em períodos anteriores à existência da vida humana,situando etapas evolutivas posteriores. | F76: X
B77: Ensino Fund. I (1º, 2º e 3º anos) | C77: CIÊNCIAS I | D77: (EF01CI09) Perceber que diferenças anatômicas entre os animais, incluindo os seres humanos, estão relacionadas a diferentes formas de realizar funções como a respiração, a alimentação, a excreção e a reprodução. | F77: X | G77: Referente ao 3
B78: Ensino Fund. I (1º, 2º e 3º anos) | C78: CIÊNCIAS I | D78: (EF02CI08) Identificar o que os seres vivos precisam para sobreviver, como água, alimentos e abrigo. | F78: X | G78: REFERENTE AO 1
B79: Ensino Fund. I (1º, 2º e 3º anos) | C79: CIÊNCIAS I | D79: (EF03CI10) Comparar formas de cuidado s e alimentação providos a filhotes entre os diversos grupos de animais superiores (como ninho, amamentação e proteção). | F79: X | G79: REFERENTE 2
B80: Ensino Fund. I (1º, 2º e 3º anos) | C80: CIÊNCIAS I | D80: (EF02CI09) Identificar e representar, por meio de desenhos, os órgãos que possibilitam a percepção de cor, luminosidade, som, formato, tamanho, calor, sabor e cheiro. | E80: X | G80: RETIRAR O TERMO POR MEIO DE DESENHO.
B81: Ensino Fund. I (1º, 2º e 3º anos) | C81: CIÊNCIAS I | D81: (EF01CI11) Identificar diferentes sentidos utilizados para interagir com equipamentos tecnológicos (por exemplo, a visão e audição para ver televisão; a audição para ouvir rádio) . | E81: X | G81: RETIRAR O EXEMPLO.
B82: Ensino Fund. I (1º, 2º e 3º anos) | C82: CIÊNCIAS I | D82: (EF03CI12) Reconhecer que o cérebro comanda todas as ações e as percepções do corpo humano, elaborando um painel representativo que mostre as múltiplas interações que ocorrem. | E82: X
B83: Ensino Fund. I (1º, 2º e 3º anos) | C83: LINGUAGENS. LÍNGUA PORT I | D83: (EF03LP08) Formular hipóteses justificadas sobre o conteúdo de textos literários (gênero, tema) a partir da leitura do título, leiaute do texto(observar como o texto se organiza na página), imagens, tipo de letra , cores, dentre outros elementos. | F83: X | G83: Acrescentar esse objetivo nos 4º e 5º anos.
B84: Ensino Fund. I (1º, 2º e 3º anos) | C84: LINGUAGENS. LÍNGUA PORT I | D84: (EF03LP15) Identificar recursos de persuasão (cores, imagens, escolhas de palavras e/ jogo de palavras, tamanho de letras) utilizados nos textos publicitários e de propaganda, reconhecendo-os como elementos de convencimento. | F84: X | G84: Acrescentar esse objetivo no 2º ano.
B85: Ensino Fund. I (1º, 2º e 3º anos) | C85: LINGUAGENS. LÍNGUA PORT I | D85: (EF01LP25) Planejar e realizar intervenções orais/sinalizadas em situações públicas e analisar práticas utilizando diferentes gêneros orais/ sinalizados (conversa, discussão, debate,entrevista, debate regrado, exposição oral). | E85: X | G85: Indicar na legenda do objetivo que o mesmo é do 1º ao 5º ano.
B86: Ensino Fund. I (1º, 2º e 3º anos) | C86: LINGUAGENS. LÍNGUA PORT I | D86: (EF01LP26) Desenvolver escuta atenta e crítica em situações variadas. | E86: X | G86: Indicar na legenda do objetivo que o mesmo é do 1º ao 5º ano.
B87: Ensino Fund. I (1º, 2º e 3º anos) | C87: LINGUAGENS. LÍNGUA PORT I | D87: (EF03LP34) Escutar histórias contadas ou lidas pelo/a professor/a ou colegas, identificando assunto, tempo, espaço e realizando inferências sobre o significado de palavras pelo contexto. | F87: X | G87: Acrescentar esse objetivo nos 4º e 5º anos.
B88: Ensino Fund. I (1º, 2º e 3º anos) | C88: LINGUAGENS. LÍNGUA PORT I | D88: (EF02LP37) Ler palavras cujas sílabas variam quanto à sua combinação entre consoantes e vogais (CV, CCV, CVV, CVC, V,VC, VCC, CCVCC), observando a presença das vogais estão em todas as sílabas. | E88: X | G88: Excluir a palavra "estão".
B89: Ensino Fund. I (4º e 5º anos) | C89: CIÊNCIAS | D89: (EF04CI01) Identificar e classificar alimentos e materiais de acordo com sua origem: animal, vegetal ou mineral, fazendo perguntas sobre como são produzidos. | E89: X | G89: alterar o termo "fazendo perguntas sobre" para investigando.
B90: Ensino Fund. I (4º e 5º anos) | C90: CIÊNCIAS | D90: (EF04CI03) Reconhecer o Sol como fonte de energia primária na produção de qualquer tipo de alimento, identificando a importância dessa energia para a vida e o ambiente. | E90: X | G90: Suprimir o termo qualquer tipo de.
B91: Ensino Fund. I (4º e 5º anos) | C91: CIÊNCIAS | D91: (EF05CI07) Reconhecer e buscar informações sobre os diversos equipamentos construídos ao longo da história humana para medir o tempo (por exemplo, construção de um relógio de sol). | E91: X | G91: Alterar o termo "Reconhecer e buscar informações sobre" para investigar.
B92: Ensino Fund. I (4º e 5º anos) | C92: CIÊNCIAS | D92: (EF05CI09) Identificar e caracterizar formas de vida microscópicas, estabelecendo relações com a saúde humana e reconhecendo o papel de microrganismos em processos diversos. | F92: X | G92: Pertinente ao 6º ano.
B93: Ensino Fund. I (4º e 5º anos) | C93: CIÊNCIAS | D93: (EF04CI11) Buscar informações sobre as recomendações para limites máximos de exposição ao som e relacionar diferentes intensidadesde som com possíveis efeitos no organismo humano. | G93: SUPRIMIDO O OBJETIVO
B94: Ensino Fund. I (4º e 5º anos) | C94: CIÊNCIAS | D94: (EF05CI12) Investigar intensidades de som, luz e calor, em ambientes na escola, quando são realizadas diferentes atividades. | E94: X | G94: Retirar o termo " na escola".
B95: Ensino Fund. I (4º e 5º anos) | C95: LINGUAGENS. LÍNGUA PORT. | D95: (EF05LP03) Produzir um sentido global para textos de diferentes gêneros, que abordem temas variados. | E95: X | G95: Deixar claro o significado de "produzir um sentido global".
B96: Ensino Fund. I (4º e 5º anos) | C96: LINGUAGENS. LÍNGUA PORT. | D96: (EF05LP32) Simular jornais veiculadas na TV e rádio, demonstrando conhecimento sobre como funciona o gênero expositivo mediado pela escrita e por imagens. | E96: X | G96: Acrescentar a palavra "citado de cunho" após a palavra "gênero".
B97: Ensino Fund. II - Ciências | C97: CIÊNCIAS DA NATUREZA | D97: (EF06CI04) Reconhecer o efeito estufa e sua importância para a vida na Terra, e discutir o impacto do uso de combustíveis fósseis pelos meios de transporte e indústria na ampliação nociva do efeito estufa e outros impactos ambientais. | E97: X | G97: REESCREVER: COMPREENDER A IMPORTÂNCIA DO EFEITO ESTUFA PARA A MANUTENÇÃO DA VIDA NA TERRA.
B98: Ensino Fund. II - Ciências | C98: CIÊNCIAS DA NATUREZA | D98: (EF07CI04) Relacionar a fotossíntese, a respiração celular e a combustão nos ciclos do carbono e do oxigênio para compreender o papel da vegetação na vida humana e animal, e discutir o impacto ambiental do desmatamento e das queimadas. | E98: X | G98: REESCREVER: RELACIONAR OS CICLOS BIOGEOQUĨMICOS À COMPREENSÃO DO SEU PAPEL NA VIDA E DISCUTIR O IMPACTO AMBIENTAL CAUSADO PELO DESMATAMENTO E QUEIMADAS.
B99: Ensino Fund. II - Ciências | C99: CIÊNCIAS DA NATUREZA | D99: (EF08CI06) Realizar experimentos, como a observação e registro de uma vara ao longo do dia em diferentes períodos do ano, que revelem a rotação e translação do planeta Terra, e produzir maquete para representar o sistema solar que ilustre esses movimentos. | E99: X | G99: REESCREVER: COMPREENDER OS MOVIMENTOS DE ROTAÇÃO E TRANSLAÇÃO DO PLANETA TERRA.
B100: Ensino Fund. II - Ciências | C100: CIÊNCIAS DA NATUREZA | D100: (EF09CI05) Efetuar simulações ou representações do tamanho, distância movimento relativos dos planetas e do Sol, assim como de sua localização na galáxia para saber comparar as distâncias no interior do sistema solar e da galáxia. | E100: X | G100: SUPRIMIR O OBJETIVO.
B101: Ensino Fund. II - Ciências | C101: CIÊNCIAS DA NATUREZA | D101: (EF07CI06) Analisar a teoria da deriva dos continentes, apresentando argumentos que a justificam, como os formatos das costas brasileira e africana. | E101: X | G101: SUPRIMIR O OBJETIVO
B102: Ensino Fund. II - Ciências | C102: CIÊNCIAS DA NATUREZA | D102: (EF06CI09) Esquematizar por meio de desenhos e montar circuitos elétricos constituídos de pilha/ bateria, fios e uma lâmpada ou outros dispositivos, explicitando destaque à continuidade da corrente e comparar a circuitos elétricos residenciais. | E102: X | F102: X | G102: SUPRIMIR O OBJETIVO. DEVERÁ SER CONTEMPLADO NO 9 ANO.
B103: Ensino Fund. II - Ciências | C103: CIÊNCIAS DA NATUREZA | D103: (EF07CI09) Investigar e relatar por escrito, ou por diagramas, a simetria bilateral na maioria dos animais e em máquinas que voam ou se locomovem e identificar sua relação com o equilíbrio desses sistemas. | E103: X | G103: SUBSTITUIR “INVESTIGAR E RELATAR POR ESCRITO OU POR DIAGRAMAS,” POR COMPREENDER A SIMETRIA...
B104: Ensino Fund. II - Ciências | C104: CIÊNCIAS DA NATUREZA | D104: (EF08CI10) Planejar e construir uma câmara escura, com ou sem lente, com ou sem diafragma, compará-la com câmeras, o olho humano e de outros animais. | E104: X | G104: REESCREVER O OBJETIVO: “COMPREENDER O FUNCIONAMENTO DO OLHO HUMANO E COMPARÁ-LO A DE OUTROS ANIMAIS.
B105: Ensino Fund. II - Ciências | C105: CIÊNCIAS DA NATUREZA | D105: (EF06CI10) Estabelecer uma analogia entre os órgãos do sentido e o cérebro e a relação entre dispositivos como microfones e câmeras e os sistemas de registro e comunicação. | E105: X | G105: REESCREVER O OBJETIVO: ESTABELECER UMA ANALOGIA ENTRE OS ÓRGÃOS DOS SENTIDOS E O CÉREBRO E A RELAÇÃO ENTRE OS DISPOSITIVOS TECNOLÓGICOS E OS SISTEMAS DE REGISTRO E COMUNICAÇÃO.
B106: Ensino Fund. II - Geografia | C106: CIÊN. HUMANAS GEOGRAFIA | D106: (EF07GE01) Compreender, em diferentes contextos mundiais, os fluxos econômicos, populacionais e diversidade étnico-cultural (indígena, afro-brasileira, africana, europeia, asiática) que explicam a ocupação, o povoamento, a formação social e territorial e as paisagens do Brasil [CIA]. | G106: RECONHECER E RESPEITAR
B107: Ensino Fund. II - Geografia | C107: CIÊN. HUMANAS GEOGRAFIA | D107: (EF09GE02) Analisar a atuação das corporações internacionais e das organizações econômicas mundiais no processo de globalização [ES]. | G107: NO PROCESSO DE MUNDIALIZAÇAO DA ECONOMIA
B108: Ensino Fund. II - Geografia | C108: CIÊN. HUMANAS GEOGRAFIA | D108: (EF07GE03) Reconhecer as territorialidades indígenas, de remanescentes de quilombolas, de povos das florestas e do cerrado, de ribeirinhos e caiçaras, entre outros grupos sociais do campo e da cidade, como direitos legais dessas comunidades [CIA] [DHC]. | G108: RECONHECER E RESPEITAR
B109: Ensino Fund. II - Geografia | C109: CIÊN. HUMANAS GEOGRAFIA | D109: (EF09GE05) Relacionar as diferenças das paisagens com os modos de viver de diferentes povos europeus, asiáticos e oceânicos, reconhecendo suas ancestralidades e o legado cultural no contexto mundial, valorizando identidades e interculturalidades regionais [EA]. | G109: ACRESCENTAR AS CARACTERÍTICAS DOS ASPECTOS FISICOS DO AMBIENTE.
B110: Ensino Fund. II - Geografia | C110: CIÊN. HUMANAS GEOGRAFIA | D110: (EF06GE07) Analisar como diferentes linguagens apresentam fatos, fenômenos e processos naturais e sociais [CD] [EA]. | G110: ANALISAR CRITCAMENTE COM DIFERENTES LINGUAGENS APRESENTANDO FATOS, FENOMENOS E PROCESSOS NATURAIS E SOCAIS (CD) (EA).
B111: Ensino Fund. II - Geografia | C111: CIÊN. HUMANAS GEOGRAFIA | D111: (EF09GE10) Aplicar conhecimentos sobre a globalização e a integração mundial (econômica, cultural etc.) na análise de seus lugares de vivências. | G111: ANALISAR CRITICAMENTE AS FORMAS DESIGUAIS DESSA INTEGRAÇÃO. (ECONÔMICOS, POLITICOS E CULTURAIS)
B112: Ensino Fund. II - Língua Estrangeira | C112: LÍNGUA ESTRANGEIRA | D112: (EF06LE01) Interagir por meio de textos em língua estrangeira sobre questões relacionadas a identidades, apropriandose de recursos linguísticodiscursivos e culturais para se referir a si, ao outro, a ideias e modos de vida. | F112: X | G112: O processo de apropriação de recursos linguístico-discursivos deve acontecer no decorrer do Ensino Fundamental II. Alterar o verbo "apropriando-se de" pela expressão "entrar em contato com os".
B113: Ensino Fund. II - Língua Estrangeira | C113: LÍNGUA ESTRANGEIRA | D113: (EF06LE02) Compreender diferentes formas de convívio como manifestações culturais, apropriando-se de recursos linguístico-discursivos e culturais para se relacionar com o outro. | F113: X | G113: O processo de apropriação de recursos linguístico-discursivos deve acontecer no decorrer do Ensino Fundamental II. Alterar o verbo "apropriando-se de" pela expressão "entrar em contato com os".
B114: Ensino Fund. II - Língua Estrangeira | C114: LÍNGUA ESTRANGEIRA | D114: (EF06LE04) Interagir por meio de textos, apropriando-se de recursos artísticos, literários e linguístico-discursivos e culturais para compreender representações que rompem com o cotidiano e identificar e valorizar diversidades identitárias e culturais. | F114: X | G114: O processo de apropriação de recursos linguístico-discursivos deve acontecer no decorrer do Ensino Fundamental II. Alterar o verbo "apropriando-se de" pela expressão "entrar em contato com os".
B115: Ensino Fund. II - Língua Estrangeira | C115: LÍNGUA ESTRANGEIRA | D115: (EF06LE05) Interagir por meio de textos em língua estrangeira sobre questões relacionadas ao convívio nos diferentes espaços em que atua, apropriando-se de recursos linguístico-discursivos e culturais para se posicionar frente a responsabilidades individuais e coletivas. | E115: X | G115: O processo de apropriação de recursos linguístico-discursivos deve acontecer no decorrer do Ensino Fundamental II. Alterar o verbo "apropriando-se de" pela expressão "entrar em contato com os". Acrescentar no final: a partir de práticas interdisciplinares.
B116: Ensino Fund. II - Língua Estrangeira | C116: LÍNGUA ESTRANGEIRA | D116: (EF06LE06) Reconhecer a presença de marcas de diferentes línguas na comunidade em que se vive, apropriandose de recursos linguísticodiscursivos e culturais para identificar e valorizar o plurilinguismo e o hibridismo linguístico. | F116: X | G116: Recortar o trecho: "apropriando-se de recursos linguístico-discursivos e culturais".
B117: Ensino Fund. II - Língua Estrangeira | C117: LÍNGUA ESTRANGEIRA | D117: (EF06LE07) Conhecer recursos digitais, apropriando-se de recursos linguístico-discursivos e culturais para relacionar suas funcionalidades a possibilidades de uso em diferentes línguas. | F117: X | G117: O processo de apropriação de recursos linguístico-discursivos deve acontecer no decorrer do Ensino Fundamental II. Alterar o verbo "apropriando-se de" pela expressão "entrar em contato com os".
B118: Ensino Fund. II - Língua Estrangeira | C118: LÍNGUA ESTRANGEIRA | D118: (EF06LE08) Interagir por meio de textos em língua estrangeira sobre atividades profissionais exercidas pelas pessoas em seu entorno, apropriandose de recursos linguísticodiscursivos e culturais para identificar e valorizar suas contribuições. | F118: X | G118: O processo de apropriação de recursos linguístico-discursivos deve acontecer no decorrer do Ensino Fundamental II. Alterar o verbo "apropriando-se de" pela expressão "entrar em contato com os".
B119: Ensino Fund. II - Língua Portuguesa | C119: LÍNGUA PORTUGUESA | D119: (EF09LP02) Analisar, em textos do cotidiano, em registro formal, como cartas e alguns tipos de e-mails, a adequação das escolhas linguísticodiscursivas (lexicais, formas de tratamento, concordância, regência) adequadas à interlocução. | F119: X | G119: Este objetivo deverá estar na sequência dos objetivos do 9º anos.
B120: Ensino Fund. II - Língua Portuguesa | C120: LÍNGUA PORTUGUESA | D120: (EF07LP06) Analisar efeitos produzidos por recursos expressivos como rimas, aliterações, assonâncias na leitura de poemas. | E120: X | G120: O código do Objetivo se repete e os textos dos mesmos são diferentes e a sequência dos objetivos do 7º anos será alterada.
B121: Ensino Fund. II - Língua Portuguesa | C121: LÍNGUA PORTUGUESA | D121: (EF07LP29) Elaborar quadros, tabelas ou gráficos para a compreensão de temas em estudo a serem apresentados, com ou sem apoio de ferramentas digitais. | E121: X | G121: Acrescentar Pictograma após a palavra tabela.
B122: Ensino Fund. II - Língua Portuguesa | C122: LÍNGUA PORTUGUESA | D122: (EF07LP33) Apresentar oralmente resultados de estudos com apoio de quadros, tabelas ou gráficos, com ou sem o uso de recursos das novas tecnologias da informação e comunicação. | E122: X | G122: Inserir a palavra "etc" para contemplar outros gêneros gráficos.
B123: Ensino Fund. II - Matemática | C123: MATEMÁTICA. | D123: (EF06MT03) Identificar características dos quadriláteros, classificálos em relação a lados e a ângulos e reconhecer a inclusão de classes entre eles. Por exemplo: todo quadrado é um retângulo, todo retângulo é um paralelogramo, todo quadrado é um losango, todo losango é um paralelogramo. | F123: X | G123: Desconsiderar o 'x' marcado em pertinência
B124: Ensino Fund. II - Matemática | C124: MATEMÁTICA. | D124: (EF06MT18) Reconhecer o sistema de numeração decimal como o que prevaleceu no mundo ocidental, destacar semelhanças e diferenças com outros sistemas e compreender suas principais características (base, unidade de contagem, valor posicional e função do zero), utilizando a composição e decomposição de números naturais, como por exemplo, 4357 = 4 x 103 + 3 x 102 + 5 x 101 + 7 x 100. | E124: X | G124: O exemplo está errado, pois não esta na base 10.
B125: Ensino Fund. II - Matemática | C125: MATEMÁTICA. | D125: (EF07MT21) Resolver e elaborar problemas que possam ser representados por equações polinomiais de 1º grau, redutíveis à forma , iniciando a compreensão da linguagem algébrica. | E125: X | G125: ax+b=0
B126: Ensino Fund. II - Matemática | C126: MATEMÁTICA. | D126: (EF08MT15) Resolver e elaborar problemas que possam ser representados por equações polinomiais de 2º grau do tipo . | E126: X | G126: ax²=c
B127: Ensino Médio - Biologia | C127: EM - BIOLOGIA | D127: (EM32CN02) Discutir alguns exemplos de seres vivos que causam doenças fitossanitárias, veterinárias e humanas, organizando informações que contenham dados sobre formas de contaminação e prevenção das mesmas | E127: X | G127: Retirar os termos: ALGUNS EXEMPLOS
B128: Ensino Médio - Biologia | C128: EM - BIOLOGIA | D128: (EM35CN04) Compreender como diferentes processos relacionados à microevolução, como seleção natural e deriva genética, podem estar relacionados de modo não linear, com outros processos e fatores evolutivos, como as mudanças em padrões ambientais e mudanças no desenvolvimento de formas orgânicas, na explicação de eventos de macroevolução, no contexto de narrativas históricas de eventos desta natureza, como a transição pelas plantas e pelos tetrápodes para o ambiente. | E128: X | G128: Retirar a frase: COMO ATRANSIÇÃO PELAS PALNTAS E PELOS TETRÁPODES PARA O AMBIENTE.
B129: Ensino Médio - Biologia | C129: EM - BIOLOGIA | D129: (EM36CN04) Compreender que a preservação de um ambiente mantém o equilíbrio ambiental (como a umidade do ar, temperatura, polinização) e que os recursos naturais podem ser esgotáveis, sendo necessária uma gestão consciente dos impactos da sua exploração. | E129: X | G129: Retirar os exemplos entre parenteses
B130: Ensino Médio - Biologia | C130: EM - BIOLOGIA | D130: (EM33CN05) Compreender o papel das divisões celulares por mitose no processo de regeneração dos tecidos e na reprodução assexuada nos eucariontes e procariontes e o papel da meiose no processo de gametogênese, promoção da variabilidade genética e transmissão precisa de características hereditárias e manutenção da vida dos organismos | E130: X | G130: Retirar o termo: PRECISA
B131: Ensino Médio - Biologia | C131: EM - BIOLOGIA | D131: (EM35CN05) Aplicar a teoria da seleção natural e o conceito de adaptação na resolução de problemas sociocientíficos que afetam nossa qualidade de vida, como a resistência bacteriana a antibióticos, a obesidade, ou o manejo de pragas agrícolas. | E131: X | G131: Retirar o termo: A OBESIDADE
B132: Ensino Médio - Física | C132: EM - FÍSICA | D132: (EM12CN07) Construir equipamentos simples, como aquecedor solar caseiro, fogão solar ou protótipo de máquina térmica, usando componentes de fácil obtenção como canos plásticos, espelhos ou sucatas, explicitando a compreensão dos fenômenos envolvidos. | E132: X | G132: acrescentar o uso de softwares para simular as transformações de energia
B133: Ensino Médio - Física | C133: EM - FÍSICA | D133: (EM13CN16) Analisar e produzir textos, representando grandezas, utilizando códigos, símbolos e nomenclaturas da Física em torno de sons, de imagens e das informações e seu processamento. | E133: X | G133: adicionar a utilização de mapas conceituais.
B134: Ensino Médio - Geografia | C134: EM - GEOGRAFIA | D134: (EM12CH01) Avaliar consequências de formas de apropriação e de alteração da natureza pela sociedade, em diferentes escalas. [EA] [ES] | G134: SUBSTITUIR ALTERAÇÃO POR TRANSFORMAÇÃO.
B135: Ensino Médio - Geografia | C135: EM - GEOGRAFIA | D135: (EM14CH01) Analisar a dinâmica da população mundial, as diferenças étnico-culturais e suas relações com as desigualdades sociais e os preconceitos. [CIA] [DHC] | G135: ÉTNICO-RACIAL, DE GÊNERO, RELIGIOSO E SEXUAL.
B136: Ensino Médio - Geografia | C136: EM - GEOGRAFIA | D136: (EM12CH02) Relacionar a exploração e a utilização da natureza à adequação da matriz energética e ao modelo de produção econômica vigente.[ES] [EA] | G136: RELACIONAR CRITICAMENTE
B137: Ensino Médio - Geografia | C137: EM - GEOGRAFIA | D137: (EM14CH02) Compreender a produção de informações e de índices sobre características populacionais pelos organismos internacionais. [CD] [DHC] | G137: NO SEU CARÁTER IDEOLÓGICO E FUNCIONAL.
B138: Ensino Médio - Geografia | C138: EM - GEOGRAFIA | D138: (EM14CH03) Analisar resultados das mobilizações e ações dos movimentos sociais na produção do espaço local, regional, mundial.[DHC] | G138: ANALISAR A HISTÓRIA DAS LUTAS DOS MOVIMENTOS SOCIAIS E SEUS REFLEXOS.
B139: Ensino Médio - Geografia | C139: EM - GEOGRAFIA | D139: EM11CH04) Exercitar a elaboração de mapeamentos e produções em diferentes linguagens. [CD] | G139: EM DIFERENTES LINGUAGENS E CONTEXTOS SOCIAIS
B140: Ensino Médio - Língua Estrangeira | C140: EM - LÍNGUA ESTRANGEIRA | D140: (EM20LI10) Interagir por meio de textos em língua estrangeira sobre questões da atualidade, apropriandose de recursos linguístico-discursivos e culturais para relacionar modos de dizer com a construção de mitos e verdades. | E140: X | G140: Para aprimorar o objetivo sugerimos: Interagir por meio de textos em língua estrangeira "em diferentes àreas do conhecimento" sobre questões...
B141: Ensino Médio - Língua Portuguesa | C141: EM - LÍNGUA PORTUGUESA | D141: (EM14LI01) Reconhecer, em gêneros que envolvam argumentação, os posicionamentos assumidos e os argumentos utilizados para sustentá-lo, avaliando sua eficácia para a argumentação. | E141: X | G141: Melhorar redação
B142: Ensino Médio - Língua Portuguesa | C142: EM - LÍNGUA PORTUGUESA | D142: (EM14LI16) Analisar as categorias sintáticas “sujeito” e “complemento verbal” (objeto direto e indireto), refletindo sobre as classes gramaticais que preenchem essas funções (o substantivo, o pronome, uma oração substantiva, a elipse). | E142: x | G142: Acrescentar o verbo compreender após o verb refletir
B143: Ensino Médio - Língua Portuguesa | C143: EM - LÍNGUA PORTUGUESA | D143: (EM14LI17) Refletir sobre a sintaxe de concordância verbal no português brasileiro, considerando ocorrências como o “sujeito posposto” e estruturas com a partícula “se”; comparar esse uso com as prescrições da norma padrão, para fazer escolhas adequadas à situação comunicativa. | E143: x | G143: Acrescentar o verbo compreender
B144: Ensino Médio - Língua Portuguesa | C144: EM - LÍNGUA PORTUGUESA | D144: (EM14LI18) Compreender a noção de regência verbal e nominal, para realizar a regência de verbos mais utilizados no português brasileiro. | E144: x | G144: substituir noção por função
B145: Ensino Médio - Matemática | C145: EM - MATEMÁTICA | D145: (EM13MT02) Estabelecer relações entre as transformações isométricas (reflexão, translação e rotação) e vetores no contexto do plano cartesiano, incluindo o uso de softwares de geometria dinâmica. | E145: X | G145: Retirar a segunda vírgula e substituir a palavra "incluindo" por "com"
B146: Ensino Médio - Matemática | C146: EM - MATEMÁTICA | D146: (EM14MT05) Resolver e elaborar problemas, envolvendo porcentagem em situações tais como cálculos de acréscimos e decréscimos, taxa percentual e juros compostos, parcelamentos, financiamentos, dentre outros, com o uso de tecnologias digitais. | G146: Igual ao EM13MT07.
B147: Ensino Médio - Matemática | C147: EM - MATEMÁTICA | D147: (EM13MT08) Reconhecer função quadrática e suas representações algébrica e gráfica, compreendendo o modelo de variação, determinando domínio, imagem, máximo e mínimo, e utilizar essas noções e representações para resolver problemas como os de movimento uniformemente variado. | G147: Igual ao EM12MT09.
B148: Ensino Médio - Matemática | C148: EM - MATEMÁTICA | D148: (EM11MT06) Compreender função como uma relação de dependência entre duas variáveis, as ideias de domínio, contradomínio e imagem, e suas representações algébricas e gráficas, e utilizálas para analisar, interpretar e resolver problemas em contextos diversos, inclusive fenômenos naturais, sociais e de outras áreas. | G148: REPETIDA NO ITEM ACIMA.
B149: Ensino Médio - Matemática | C149: EM - MATEMÁTICA | D149: (EM12MT09) Reconhecer função quadrática e suas representações algébrica e gráfica, compreendendo o modelo de variação determinando domínio, imagem, máximo e mínimo, e utilizar essas noções e representações para resolver problemas como os de movimento uniformemente variado. | G149: REPETIU NO ITEM ACIMA
B150: Ensino Médio - Matemática | C150: EM - MATEMÁTICA | D150: (EM13MT08) Reconhecer função quadrática e suas representações algébrica e gráfica, compreendendo o modelo de variação determinando domínio, imagem, máximo e mínimo, e utilizar essas noções e representações para resolver problemas como os de movimento uniformemente variado. | G150: Igual ao EM12MT09.
B151: Ensino Médio - Matemática | C151: EM - MATEMÁTICA | D151: (EM14MT07) Compreender a forma de variação das funções seno e cosseno, reconhecer suas representações algébricas e gráficas, identificando domínio, imagem e características especiais como periodicidade, amplitude, máximos e mínimos, e utilizá-las para analisar e resolver problemas envolvendo fenômenos periódicos, como os da Física. | G151: REPETIU NO ITEM ACIMA
B152: Ensino Médio - Matemática | C152: EM - MATEMÁTICA | D152: (EM15MT09) Conjecturar, verificar e generalizar sobre o que ocorre com o gráfico de uma função de f(x) ao transformá-la em af(x), f(ax), f(x) + a; f(x+a), com a≠0, com apoio de softwares de geometria dinâmica e de funções. | G152: REPETIU NO ITEM ACIMA
B153: Ensino Médio - Matemática | C153: EM - MATEMÁTICA | D153: (EM11MT08) Reconhecer progressões aritméticas como sequências numéricas de variação linear, associá-las a funções afins de domínios discretos e utilizá-las para resolver problemas. | G153: REPETIDA NO ITEM ACIMA.
B154: Ensino Médio - Matemática | C154: EM - MATEMÁTICA | D154: (EM13MT10) Reconhecer função exponencial e logarítmica, suas representações algébricas e gráficas, compreendendo seus modelos de variação, identificando domínio e imagem, e utilizar essas noções e representações para resolver problemas, como os que envolvem juros compostos. | G154: REPETIU NO ITEM ACIMA
B155: Ensino Médio - Matemática | C155: EM - MATEMÁTICA | D155: (EM11MT09) Resolver e elaborar problemas que possam ser representados por inequações polinomiais de 1º grau, associando o conjunto solução a pontos da reta numérica, contribuindo para desenvolver a noção de intervalo, entre outras. | G155: REPETIDA NO ITEM ACIMA.
B156: Ensino Médio - Matemática | C156: EM - MATEMÁTICA | D156: (EM13MT11) Reconhecer progressões geométricas como sequências numéricas de variação exponencial, associá-las a funções exponenciais de domínios discretos e utilizá-las para resolver problemas, como os de juros compostos. | G156: REPETIU NO ITEM ACIMA
B157: Ensino Médio - Sociologia | C157: EM - SOCIOLOGIA | D157: (EM32CH04) Identificar formas de cooperação em diferentes dimensões da vida social, tais como família, escola, trabalho, grupos juvenis, entre outros. | F157: X | G157: Identificar e relacionar as diferentes formas de prenconceitos, discriminaçães, intolerância e estigma.
B158: Ensino Médio - Sociologia | C158: EM - SOCIOLOGIA | D158: (EM32CH05) Identificar formas de preconceito, discriminação, intolerância e estigma. | F158: X | G158: Identificar e relacionar as diferentes formas de prenconceitos, discriminaçães, intolerância e estigma.
B159: Ensino Médio - Sociologia | C159: EM - SOCIOLOGIA | D159: (EM32CH07) Reconhecer os Direitos Humanos como instrumento de combate a diferentes formas de violência. [DHC] | F159: X | G159: Não está coerente as desigualades sociais com a injustiça ambiental.

Sheet Resultados quantitativos
B2: Áreas | C2: Segmentos das áreas | D2: Quantidade de objetivos por segmento | E2: Quantidade de objetivos indicados por problemas de CLAREZA | F2: Quantidade de objetivos indicados por problemas de PERTINÊNCIA
B3: Educação Infantil (Bebês) | C3: O eu, o outro, o nós | D3: 5 | E3: =COUNTIFS(CONSOLIDAÇÃO!C:C,"O eu, o outro, o nós - Bebês",CONSOLIDAÇÃO!E:E,"X") -> 0 | F3: =COUNTIFS(CONSOLIDAÇÃO!C:C,"O eu, o outro, o nós - Bebês",CONSOLIDAÇÃO!F:F,"X") -> 1
C4: Corpo, gestos e mov. | D4: 5 | E4: =COUNTIFS(CONSOLIDAÇÃO!C:C,"Corpo, gestos e mov. - Bebês",CONSOLIDAÇÃO!E:E,"X") -> 0 | F4: =COUNTIFS(CONSOLIDAÇÃO!C:C,"Corpo, gestos e mov. - Bebês",CONSOLIDAÇÃO!F:F,"X") -> 1
C5: Escuta, fala, pens. | D5: 4 | E5: =COUNTIFS(CONSOLIDAÇÃO!C:C,"Escuta, fala, pens. - Bebês",CONSOLIDAÇÃO!E:E,"X") -> 0 | F5: =COUNTIFS(CONSOLIDAÇÃO!C:C,"Escuta, fala, pens. - Bebês",CONSOLIDAÇÃO!F:F,"X") -> 0
C6: Traços, sons, formas | D6: 5 | E6: =COUNTIFS(CONSOLIDAÇÃO!C:C,"Traços, sons, formas - Bebês",CONSOLIDAÇÃO!E:E,"X") -> 0 | F6: =COUNTIFS(CONSOLIDAÇÃO!C:C,"Traços, sons, formas - Bebês",CONSOLIDAÇÃO!F:F,"X") -> 0
C7: Espaços, tempos, qnt. | D7: 4 | E7: =COUNTIFS(CONSOLIDAÇÃO!C:C,"Espaços, tempos, qnt. - Bebês",CONSOLIDAÇÃO!E:E,"X") -> 0 | F7: =COUNTIFS(CONSOLIDAÇÃO!C:C,"Espaços, tempos, qnt. - Bebês",CONSOLIDAÇÃO!F:F,"X") -> 0
C8: TOTAL DA ÁREA | D8: =SUM(D3:D7) -> 23 | E8: =SUM(E3:E7) -> 0 | F8: 2
D9: =E8/D8 -> 0 | F9: =F8/D8 -> 0.08695652174
B10: Educação Infantil (Bem pequenas) | C10: O eu, o outro, o nós | D10: 5 | E10: =COUNTIFS(CONSOLIDAÇÃO!C:C,"O eu, o outro, o nós - Bem Pequenas",CONSOLIDAÇÃO!E:E,"X") -> 0 | F10: =COUNTIFS(CONSOLIDAÇÃO!C:C,"O eu, o outro, o nós - Bem Pequenas",CONSOLIDAÇÃO!F:F,"X") -> 0
C11: Corpo, gestos e mov. | D11: 5 | E11: =COUNTIFS(CONSOLIDAÇÃO!C:C,"Corpo, gestos e mov. - Bem Pequenas",CONSOLIDAÇÃO!E:E,"X") -> 0 | F11: =COUNTIFS(CONSOLIDAÇÃO!C:C,"Corpo, gestos e mov. - Bem Pequenas",CONSOLIDAÇÃO!F:F,"X") -> 0
C12: Escuta, fala, pens. | D12: 5 | E12: =COUNTIFS(CONSOLIDAÇÃO!C:C,"Escuta, fala, pens. - Bem Pequenas",CONSOLIDAÇÃO!E:E,"X") -> 0 | F12: =COUNTIFS(CONSOLIDAÇÃO!C:C,"Escuta, fala, pens. - Bem Pequenas",CONSOLIDAÇÃO!F:F,"X") -> 1
C13: Traços, sons, formas | D13: 5 | E13: =COUNTIFS(CONSOLIDAÇÃO!C:C,"Traços, sons, formas - Bem Pequenas",CONSOLIDAÇÃO!E:E,"X") -> 0 | F13: =COUNTIFS(CONSOLIDAÇÃO!C:C,"Traços, sons, formas - Bem Pequenas",CONSOLIDAÇÃO!F:F,"X") -> 0
C14: Espaços, tempos, qnt. | D14: 5 | E14: =COUNTIFS(CONSOLIDAÇÃO!C:C,"Espaços, tempos, qnt. - Bem Pequenas",CONSOLIDAÇÃO!E:E,"X") -> 0 | F14: =COUNTIFS(CONSOLIDAÇÃO!C:C,"Espaços, tempos, qnt. - Bem Pequenas",CONSOLIDAÇÃO!F:F,"X") -> 0
C15: TOTAL DA ÁREA | D15: =SUM(D10:D14) -> 25 | E15: =SUM(E10:E14) -> 0 | F15: 1
D16: =E15/D15 -> 0 | F16: =F15/D15 -> 0.04
B17: Educação Infantil (Pequenas) | C17: O eu, o outro, o nós | D17: 5 | E17: =COUNTIFS(CONSOLIDAÇÃO!C:C,"O eu, o outro, o nós - Pequenas",CONSOLIDAÇÃO!E:E,"X") -> 0 | F17: =COUNTIFS(CONSOLIDAÇÃO!C:C,"O eu, o outro, o nós - Pequenas",CONSOLIDAÇÃO!F:F,"X") -> 0
C18: Corpo, gestos e mov. | D18: 5 | E18: =COUNTIFS(CONSOLIDAÇÃO!C:C,"Corpo, gestos e mov. - Pequenas",CONSOLIDAÇÃO!E:E,"X") -> 0 | F18: =COUNTIFS(CONSOLIDAÇÃO!C:C,"Corpo, gestos e mov. - Pequenas",CONSOLIDAÇÃO!F:F,"X") -> 0
C19: Escuta, fala, pens. | D19: 5 | E19: =COUNTIFS(CONSOLIDAÇÃO!C:C,"Escuta, fala, pens. - Pequenas",CONSOLIDAÇÃO!E:E,"X") -> 0 | F19: =COUNTIFS(CONSOLIDAÇÃO!C:C,"Escuta, fala, pens. - Pequenas",CONSOLIDAÇÃO!F:F,"X") -> 3
C20: Traços, sons, formas | D20: 5 | E20: =COUNTIFS(CONSOLIDAÇÃO!C:C,"Traços, sons, formas - Pequenas",CONSOLIDAÇÃO!E:E,"X") -> 0 | F20: =COUNTIFS(CONSOLIDAÇÃO!C:C,"Traços, sons, formas - Pequenas",CONSOLIDAÇÃO!F:F,"X") -> 0
C21: Espaços, tempos, qnt. | D21: 5 | E21: =COUNTIFS(CONSOLIDAÇÃO!C:C,"Espaços, tempos, qnt. - Pequena",CONSOLIDAÇÃO!E:E,"X") -> 0 | F21: =COUNTIFS(CONSOLIDAÇÃO!C:C,"Espaços, tempos, qnt. - Pequena",CONSOLIDAÇÃO!F:F,"X") -> 0
C22: TOTAL DA ÁREA | D22: =SUM(D17:D21) -> 25 | E22: =SUM(E17:E21) -> 0 | F22: 3
D23: 0.04 | F23: =F22/D22 -> 0.12
B24: Ensino Fund. I (1º, 2º e 3º anos) | C24: Língua Portuguesa | D24: 147 | E24: =COUNTIFS(CONSOLIDAÇÃO!C:C,"LINGUAGENS. LÍNGUA PORT I",CONSOLIDAÇÃO!E:E,"X") -> 3 | F24: =COUNTIFS(CONSOLIDAÇÃO!C:C,"LINGUAGENS. LÍNGUA PORT I",CONSOLIDAÇÃO!F:F,"X") -> 3
C25: Arte | D25: 36 | E25: =COUNTIFS(CONSOLIDAÇÃO!C:C,"LINGUAGENS. ARTE I",CONSOLIDAÇÃO!E:E,"X") -> 1 | F25: =COUNTIFS(CONSOLIDAÇÃO!C:C,"LINGUAGENS. ARTE I",CONSOLIDAÇÃO!F:F,"X") -> 0
C26: Educação Física | D26: 27 | E26: =COUNTIFS(CONSOLIDAÇÃO!C:C,"LINGUAGENS. ED. FÍSICA I",CONSOLIDAÇÃO!E:E,"X") -> 0 | F26: =COUNTIFS(CONSOLIDAÇÃO!C:C,"LINGUAGENS. ED. FÍSICA I",CONSOLIDAÇÃO!F:F,"X") -> 0
C27: Matemática | D27: 51 | E27: =COUNTIFS(CONSOLIDAÇÃO!C:C,"MATEMÁTICA I",CONSOLIDAÇÃO!E:E,"X") -> 0 | F27: =COUNTIFS(CONSOLIDAÇÃO!C:C,"MATEMÁTICA I",CONSOLIDAÇÃO!F:F,"X") -> 0
C28: Ciências | D28: 35 | E28: =COUNTIFS(CONSOLIDAÇÃO!C:C,"CIÊNCIAS I",CONSOLIDAÇÃO!E:E,"X") -> 3 | F28: =COUNTIFS(CONSOLIDAÇÃO!C:C,"CIÊNCIAS I",CONSOLIDAÇÃO!F:F,"X") -> 4
C29: História | D29: 59 | E29: =COUNTIFS(CONSOLIDAÇÃO!C:C,"CIÊN. HUMANAS HISTÓRIA I",CONSOLIDAÇÃO!E:E,"X") -> 0 | F29: =COUNTIFS(CONSOLIDAÇÃO!C:C,"CIÊN. HUMANAS HISTÓRIA I",CONSOLIDAÇÃO!F:F,"X") -> 0
C30: Geografia | D30: 18 | E30: =COUNTIFS(CONSOLIDAÇÃO!C:C,"CIÊN. HUMANAS GEOGRAFIA I",CONSOLIDAÇÃO!E:E,"X") -> 0 | F30: =COUNTIFS(CONSOLIDAÇÃO!C:C,"CIÊN. HUMANAS GEOGRAFIA I",CONSOLIDAÇÃO!F:F,"X") -> 0
C31: Ensino Religioso | D31: 15 | E31: =COUNTIFS(CONSOLIDAÇÃO!C:C,"ENSINO RELIGIOSO I",CONSOLIDAÇÃO!E:E,"X") -> 0 | F31: =COUNTIFS(CONSOLIDAÇÃO!C:C,"ENSINO RELIGIOSO I",CONSOLIDAÇÃO!F:F,"X") -> 0
C32: TOTAL DA ÁREA | D32: =SUM(D24:D31) -> 388 | E32: =SUM(E24:E31) -> 7 | F32: 7
D33: =E32/D32 -> 0.01804123711 | F33: =F32/D32 -> 0.01804123711
B34: Ensino Fund. I (4º e 5º anos) | C34: Língua Portuguesa | D34: 82 | E34: =COUNTIFS(CONSOLIDAÇÃO!C:C,"LINGUAGENS. LÍNGUA PORT",CONSOLIDAÇÃO!E:E,"X") -> 0 | F34: =COUNTIFS(CONSOLIDAÇÃO!C:C,"LINGUAGENS. LÍNGUA PORT",CONSOLIDAÇÃO!F:F,"X") -> 0
C35: Arte | D35: 36 | E35: =COUNTIFS(CONSOLIDAÇÃO!C:C,"LINGUAGENS. ARTE",CONSOLIDAÇÃO!E:E,"X") -> 0 | F35: =COUNTIFS(CONSOLIDAÇÃO!C:C,"LINGUAGENS. ARTE",CONSOLIDAÇÃO!F:F,"X") -> 0
C36: Educação Física | D36: 61 | E36: =COUNTIFS(CONSOLIDAÇÃO!C:C,"LINGUAGENS. ED. FÍSICA",CONSOLIDAÇÃO!E:E,"X") -> 0 | F36: =COUNTIFS(CONSOLIDAÇÃO!C:C,"LINGUAGENS. ED. FÍSICA",CONSOLIDAÇÃO!F:F,"X") -> 0
C37: Matemática | D37: 44 | E37: =COUNTIFS(CONSOLIDAÇÃO!C:C,"MATEMÁTICA",CONSOLIDAÇÃO!E:E,"X") -> 0 | F37: =COUNTIFS(CONSOLIDAÇÃO!C:C,"MATEMÁTICA",CONSOLIDAÇÃO!F:F,"X") -> 0
C38: Ciências | D38: 23 | E38: =COUNTIFS(CONSOLIDAÇÃO!C:C,"CIÊNCIAS",CONSOLIDAÇÃO!E:E,"X") -> 0 | F38: =COUNTIFS(CONSOLIDAÇÃO!C:C,"CIÊNCIAS",CONSOLIDAÇÃO!F:F,"X") -> 0
C39: História | D39: 40 | E39: =COUNTIFS(CONSOLIDAÇÃO!C:C,"CIÊN. HUMANAS HISTÓRIA",CONSOLIDAÇÃO!E:E,"X") -> 0 | F39: =COUNTIFS(CONSOLIDAÇÃO!C:C,"CIÊN. HUMANAS HISTÓRIA",CONSOLIDAÇÃO!F:F,"X") -> 0
C40: Geografia | D40: 13 | E40: =COUNTIFS(CONSOLIDAÇÃO!C:C,"CIÊN. HUMANAS GEOGRAFIA",CONSOLIDAÇÃO!E:E,"X") -> 0 | F40: =COUNTIFS(CONSOLIDAÇÃO!C:C,"CIÊN. HUMANAS GEOGRAFIA",CONSOLIDAÇÃO!F:F,"X") -> 0
C41: Ensino Religioso | D41: 10 | E41: =COUNTIFS(CONSOLIDAÇÃO!C:C,"ENSINO RELIGIOSO",CONSOLIDAÇÃO!E:E,"X") -> 0 | F41: =COUNTIFS(CONSOLIDAÇÃO!C:C,"ENSINO RELIGIOSO",CONSOLIDAÇÃO!F:F,"X") -> 0
C42: TOTAL DA ÁREA | D42: =SUM(D34:D41) -> 309 | E42: =SUM(E34:E41) -> 0 | F42: 0
D43: =E42/D42 -> 0 | F43: =F42/D42 -> 0
B44: Ensino Fund. II | C44: Arte | D44: 39 | E44: =COUNTIFS(CONSOLIDAÇÃO!C:C,"Artes",CONSOLIDAÇÃO!E:E,"X") -> 0 | F44: =COUNTIFS(CONSOLIDAÇÃO!C:C,"Artes",CONSOLIDAÇÃO!F:F,"X") -> 0
C45: Ciências | D45: 38 | E45: =COUNTIFS(CONSOLIDAÇÃO!C:C,"ciências da Natureza",CONSOLIDAÇÃO!E:E,"X") -> 9 | F45: =COUNTIFS(CONSOLIDAÇÃO!C:C,"ciências da Natureza",CONSOLIDAÇÃO!F:F,"X") -> 1
C46: Educação Física | D46: 90 | E46: =COUNTIFS(CONSOLIDAÇÃO!C:C,"Educação Física",CONSOLIDAÇÃO!E:E,"X") -> 0 | F46: =COUNTIFS(CONSOLIDAÇÃO!C:C,"Educação Física",CONSOLIDAÇÃO!F:F,"X") -> 0
C47: Ensino Religioso | D47: 38 | E47: =COUNTIFS(CONSOLIDAÇÃO!C:C,"Ensino Religioso",CONSOLIDAÇÃO!E:E,"X") -> 0 | F47: =COUNTIFS(CONSOLIDAÇÃO!C:C,"Ensino Religioso",CONSOLIDAÇÃO!F:F,"X") -> 0
C48: Geografia | D48: 36 | E48: =COUNTIFS(CONSOLIDAÇÃO!C:C,"CIÊN. HUMANAS GEOGRAFIA",CONSOLIDAÇÃO!E:E,"X") -> 0 | F48: =COUNTIFS(CONSOLIDAÇÃO!C:C,"CIÊN. HUMANAS GEOGRAFIA",CONSOLIDAÇÃO!F:F,"X") -> 0
C49: História | D49: 122 | E49: =COUNTIFS(CONSOLIDAÇÃO!C:C,"CIÊN. HUMANAS HISTÓRIA",CONSOLIDAÇÃO!E:E,"X") -> 0 | F49: =COUNTIFS(CONSOLIDAÇÃO!C:C,"CIÊN. HUMANAS HISTÓRIA",CONSOLIDAÇÃO!F:F,"X") -> 0
C50: Língua Estrangeira | D50: 32 | E50: =COUNTIFS(CONSOLIDAÇÃO!C:C,"Língua Estrangeira",CONSOLIDAÇÃO!E:E,"X") -> 1 | F50: =COUNTIFS(CONSOLIDAÇÃO!C:C,"Língua Estrangeira",CONSOLIDAÇÃO!F:F,"X") -> 6
C51: Língua Portuguesa | D51: 164 | E51: 3 | F51: =COUNTIFS(CONSOLIDAÇÃO!C:C,"Língua Portuguesa",CONSOLIDAÇÃO!F:F,"X") -> 1
C52: Matemática | D52: 75 | E52: =COUNTIFS(CONSOLIDAÇÃO!C:C,"MATEMÁTICA.",CONSOLIDAÇÃO!E:E,"X") -> 3 | F52: =COUNTIFS(CONSOLIDAÇÃO!C:C,"MATEMÁTICA.",CONSOLIDAÇÃO!F:F,"X") -> 1
C53: TOTAL DA ÁREA | D53: =SUM(D44:D52) -> 634 | E53: =SUM(E44:E52) -> 16 | F53: 9
D54: =E53/D53 -> 0.02523659306 | F54: =F53/D53 -> 0.0141955836
B55: Ensino Médio | C55: Arte | D55: 41 | E55: =COUNTIFS(CONSOLIDAÇÃO!C:C,"EM - ARTES",CONSOLIDAÇÃO!E:E,"X") -> 0 | F55: =COUNTIFS(CONSOLIDAÇÃO!C:C,"EM - ARTES",CONSOLIDAÇÃO!F:F,"X") -> 0
C56: Biologia | D56: 37 | E56: =COUNTIFS(CONSOLIDAÇÃO!C:C,"EM - BIOLOGIA",CONSOLIDAÇÃO!E:E,"X") -> 5 | F56: =COUNTIFS(CONSOLIDAÇÃO!C:C,"EM - BIOLOGIA",CONSOLIDAÇÃO!F:F,"X") -> 0
C57: Educação Física | D57: 92 | E57: =COUNTIFS(CONSOLIDAÇÃO!C:C,"EM - EDUCAÇÃO FÍSICA",CONSOLIDAÇÃO!E:E,"X") -> 0 | F57: =COUNTIFS(CONSOLIDAÇÃO!C:C,"EM - EDUCAÇÃO FÍSICA",CONSOLIDAÇÃO!F:F,"X") -> 0
C58: Filosofia | D58: 16 | E58: =COUNTIFS(CONSOLIDAÇÃO!C:C,"EM - FILOSOFIA",CONSOLIDAÇÃO!E:E,"X") -> 0 | F58: =COUNTIFS(CONSOLIDAÇÃO!C:C,"EM - FILOSOFIA",CONSOLIDAÇÃO!F:F,"X") -> 0
C59: Física | D59: 53 | E59: =COUNTIFS(CONSOLIDAÇÃO!C:C,"EM - FÍSICA",CONSOLIDAÇÃO!E:E,"X") -> 2 | F59: =COUNTIFS(CONSOLIDAÇÃO!C:C,"EM - FÍSICA",CONSOLIDAÇÃO!F:F,"X") -> 0
C60: Geografia | D60: 25 | E60: =COUNTIFS(CONSOLIDAÇÃO!C:C,"EM - GEOGRAFIA",CONSOLIDAÇÃO!E:E,"X") -> 0 | F60: =COUNTIFS(CONSOLIDAÇÃO!C:C,"EM - GEOGRAFIA",CONSOLIDAÇÃO!F:F,"X") -> 0
C61: História | D61: 48 | E61: =COUNTIFS(CONSOLIDAÇÃO!C:C,"EM - HISTÓRIA",CONSOLIDAÇÃO!E:E,"X") -> 0 | F61: =COUNTIFS(CONSOLIDAÇÃO!C:C,"EM - HISTÓRIA",CONSOLIDAÇÃO!F:F,"X") -> 0
C62: Língua Estrangeira | D62: 16 | E62: =COUNTIFS(CONSOLIDAÇÃO!C:C,"EM - LÍNGUA ESTRANGEIRA",CONSOLIDAÇÃO!E:E,"X") -> 1 | F62: =COUNTIFS(CONSOLIDAÇÃO!C:C,"EM - LÍNGUA ESTRANGEIRA",CONSOLIDAÇÃO!F:F,"X") -> 0
C63: Língua Portuguesa | D63: 76 | E63: =COUNTIFS(CONSOLIDAÇÃO!C:C,"EM - LÍNGUA PORTUGUESA",CONSOLIDAÇÃO!E:E,"X") -> 4 | F63: =COUNTIFS(CONSOLIDAÇÃO!C:C,"EM - LÍNGUA PORTUGUESA",CONSOLIDAÇÃO!F:F,"X") -> 0
C64: Matemática | D64: 56 | E64: =COUNTIFS(CONSOLIDAÇÃO!C:C,"EM - MATEMÁTICA",CONSOLIDAÇÃO!E:E,"X") -> 1 | F64: =COUNTIFS(CONSOLIDAÇÃO!C:C,"EM - MATEMÁTICA",CONSOLIDAÇÃO!F:F,"X") -> 0
C65: Química | D65: 40 | E65: =COUNTIFS(CONSOLIDAÇÃO!C:C,"EM - QUÍMICA",CONSOLIDAÇÃO!E:E,"X") -> 0 | F65: =COUNTIFS(CONSOLIDAÇÃO!C:C,"EM - QUÍMICA",CONSOLIDAÇÃO!F:F,"X") -> 0
C66: Sociologia | D66: 36 | E66: =COUNTIFS(CONSOLIDAÇÃO!C:C,"EM - SOCIOLOGIA",CONSOLIDAÇÃO!E:E,"X") -> 0 | F66: =COUNTIFS(CONSOLIDAÇÃO!C:C,"EM - SOCIOLOGIA",CONSOLIDAÇÃO!F:F,"X") -> 3
C67: TOTAL DA ÁREA | D67: =SUM(D55:D66) -> 536 | E67: =SUM(E55:E66) -> 13 | F67: 3
D68: =E67/D67 -> 0.02425373134 | F68: =F67/D67 -> 0.005597014925
B69: TOTAL DE OBJETIVOS DE APRENDIZAGEM | C69: =SUM(D67,D53,D42,D32,D22,D15,D8) -> 1940 | D69: Porcentagem de objetivos indicados por problemas de CLAREZA | E69: =SUM(E67,E53,E42,E32,E22,E15,E8) -> 36 | F69: =SUM(F67,F53,F42,F32,F22,F15,F8) -> 25
D70: Porcentagem de objetivos indicados por problemas de PERTINÊNCIA | E70: =E69/C69 -> 0.01855670103 | F70: =F69/C69 -> 0.01288659794
